[Event "26th Hit Open-A 2022"]
[Site "Nova Gorica"]
[Date "2022.09.17"]
[Round "3.13"]
[White "Zamar Kodelja, Jurij"]
[Black "Subelj, Jan"]
[Result "1/2-1/2"]
[ECO "D31"]
[WhiteElo "2241"]
[BlackElo "2505"]
[Annotator "ChessBase"]
[PlyCount "104"]
[EventDate "2022.09.16"]
[EventType "swiss"]
[EventCountry "SLO"]
[SourceTitle "playchess.com"]
[Source "ChessBase"]
[SourceQuality "1"]
[TimeControl "5400+30"]

1. d4 {[%emt 0:00:02]} d5 {[%emt 0:00:19]} 2. c4 {[%emt 0:00:41]} e6 {[%emt 0:00:33]} 3. Nc3 {[%emt 0:00:07]} c6 {[%emt 0:00:25]} 4. cxd5 {[%emt 0:00:16]} exd5 {[%emt 0:00:13]} 5. Qc2 {[%emt 0:00:07]} Bd6 {[%emt 0:01:10]} 6. Nf3 {[%emt 0:01:38]} h6 {[%emt 0:01:29]} 7. e4 {[%emt 0:03:08]} dxe4 {[%emt 0:00:50]} 8. Qxe4+ {[%emt 0:00:07]} Qe7 {[%emt 0:07:45]} 9. Be2 {[%emt 0:01:31]} Nf6 {[%emt 0:03:42]} 10. Qd3 {[%emt 0:03:03]} Na6 {[%emt 0:05:03]} 11. a3 {[%emt 0:00:40]} Bg4 {[%emt 0:05:44]} 12. O-O {[%emt 0:00:51]} O-O {[%emt 0:01:21]} 13. b4 {[%emt 0:01:24]} Nc7 {[%emt 0:00:25]} 14. b5 {[%emt 0:07:40]} Nxb5 {[%emt 0:05:48]} 15. Nxb5 {[%emt 0:00:37]} cxb5 {[%emt 0:00:07]} 16. Qxb5 {[%emt 0:00:11]} Bd7 {[%emt 0:06:30]} 17. Qd3 {[%emt 0:01:57]} Bc6 {[%emt 0:00:23]} 18. Bb2 {[%emt 0:00:32]} Nd5 {[%emt 0:01:42]} 19. g3 {[%emt 0:04:34]} Nb6 {[%emt 0:12:54]} 20. Ne5 {[%emt 0:06:20]} Bxe5 {[%emt 0:05:22]} 21. dxe5 {[%emt 0:00:20]} Rfd8 {[%emt 0:00:06]} 22. Qe3 {[%emt 0:01:57]} Qe6 {[%emt 0:00:47]} 23. f3 {[%emt 0:07:09]} Nc4 {[%emt 0:02:58]} 24. Bxc4 {[%emt 0:00:07]} Qxc4 {[%emt 0:00:04]} 25. Rac1 {[%emt 0:02:26]} Qd5 {[%emt 0:06:31]} 26. Qc3 {[%emt 0:02:25]} Rd7 {[%emt 0:01:35]} 27. Rf2 {[%emt 0:05:57]} Rad8 {[%emt 0:01:54]} 28. e6 {[%emt 0:02:41]} fxe6 {[%emt 0:00:07]} 29. Re1 {[%emt 0:00:12]} Qf5 {[%emt 0:03:57]} 30. Re5 {[%emt 0:05:15]} Rd3 {[%emt 0:12:17]} 31. Rxf5 {[%emt 0:05:34]} Rxc3 {[%emt 0:00:06]} 32. Bxc3 {[%emt 0:00:03]} exf5 {[%emt 0:00:07]} 33. f4 {[%emt 0:00:23]} Rd1+ {[%emt 0:00:44]} 34. Rf1 {[%emt 0:00:04]} Rd3 {[%emt 0:00:05]} 35. Rc1 {[%emt 0:00:30]} g5 {[%emt 0:00:15]} 36. Bb4 {[%emt 0:01:33]} Kf7 {[%emt 0:00:57]} 37. Re1 {[%emt 0:00:09]} Be4 {[%emt 0:04:52]} 38. Re2 {[%emt 0:01:07]} Rb3 {[%emt 0:06:01]} 39. Rd2 {[%emt 0:00:43]} Bd3 {[%emt 0:00:06]} 40. Kf2 {[%emt 0:00:32]} b6 {[%emt 0:01:29]} 41. Ke3 {[%emt 0:01:49]} Be4+ {[%emt 0:00:25]} 42. Kd4 {[%emt 0:00:09]} a5 {[%emt 0:01:24]} 43. Bd6 {[%emt 0:01:07]} Ke6 {[%emt 0:00:07]} 44. Bf8 {[%emt 0:00:36]} gxf4 {[%emt 0:01:15]} 45. gxf4 {[%emt 0:00:09]} Kf7 {[%emt 0:00:34]} 46. Bd6 {[%emt 0:00:06]} Rh3 {[%emt 0:01:06]} 47. Ke5 {[%emt 0:03:02]} b5 {[%emt 0:00:11]} 48. Bc5 {[%emt 0:01:59]} Bd3 {[%emt 0:01:46]} 49. Bd6 {[%emt 0:00:51]} Kg6 {[%emt 0:00:41]} 50. Bf8 {[%emt 0:01:24]} Kf7 {[%emt 0:00:38]} 51. Bd6 {[%emt 0:00:05]} Kg6 {[%emt 0:00:36]} 52. Bf8 {[%emt 0:00:05]} Kf7 {[%emt 0:00:23]} 1/2-1/2

[Event "26th Hit Open-A 2022"]
[Site "Nova Gorica"]
[Date "2022.09.17"]
[Round "3.14"]
[White "Diermair, Andreas"]
[Black "Acimovic, Sergej"]
[Result "1-0"]
[ECO "A49"]
[WhiteElo "2468"]
[BlackElo "2114"]
[Annotator "ChessBase"]
[PlyCount "77"]
[EventDate "2022.09.16"]
[EventType "swiss"]
[EventCountry "SLO"]
[SourceTitle "playchess.com"]
[Source "ChessBase"]
[SourceQuality "1"]
[TimeControl "5400+30"]

1. Nf3 {[%emt 0:02:06]} Nf6 {[%emt 0:00:22]} 2. g3 {[%emt 0:00:11]} g6 {[%emt 0:00:24]} 3. b3 {[%emt 0:00:21]} Bg7 {[%emt 0:00:32]} 4. Bb2 {[%emt 0:00:04]} O-O {[%emt 0:00:39]} 5. Bg2 {[%emt 0:00:18]} d6 {[%emt 0:01:20]} 6. d4 {[%emt 0:00:09]} Nbd7 {[%emt 0:04:44]} 7. O-O {[%emt 0:04:07]} c6 {[%emt 0:01:31]} 8. Nbd2 {[%emt 0:06:30]} Qc7 {[%emt 0:02:14]} 9. a4 {[%emt 0:01:26]} Rb8 {[%emt 0:06:05]} 10. e4 {[%emt 0:08:53]} c5 {[%emt 0:07:40]} 11. d5 {[%emt 0:03:08]} b6 {[%emt 0:09:35]} 12. Re1 {[%emt 0:01:06]} a6 {[%emt 0:05:07]} 13. Nc4 {[%emt 0:02:28]} b5 {[%emt 0:04:01]} 14. axb5 {[%emt 0:00:11]} axb5 {[%emt 0:00:06]} 15. Na5 {[%emt 0:01:14]} Bb7 {[%emt 0:03:05]} 16. e5 {[%emt 0:09:24]} Ng4 {[%emt 0:06:55]} 17. exd6 {[%emt 0:01:03]} exd6 {[%emt 0:06:25]} 18. Bxg7 {[%emt 0:00:29]} Kxg7 {[%emt 0:00:05]} 19. Ng5 {[%emt 0:02:13]} h5 {[%emt 0:09:53]} 20. h3 {[%emt 0:05:10]} Nh6 {[%emt 0:01:03]} 21. Qd3 {[%emt 0:13:27]} Ne5 {[%emt 0:11:33]} 22. Qc3 {[%emt 0:02:45]} b4 {[%emt 0:00:08]} 23. Qb2 {[%emt 0:00:41]} Kg8 {[%emt 0:00:33]} 24. f4 {[%emt 0:01:58]} Nd7 {[%emt 0:00:16]} 25. Nc6 {[%emt 0:03:11]} Bxc6 {[%emt 0:05:43]} 26. dxc6 {[%emt 0:00:03]} Nb6 {[%emt 0:00:24]} 27. Ne4 {[%emt 0:01:38]} Nd5 {[%emt 0:01:55]} 28. Rad1 {[%emt 0:01:52]} Nc3 {[%emt 0:00:27]} 29. Nf6+ {[%emt 0:00:30]} Kg7 {[%emt 0:02:06]} 30. Nd5 {[%emt 0:00:17]} Qa5 {[%emt 0:00:29]} 31. Ra1 {[%emt 0:01:28]} Qb5 {[%emt 0:00:05]} 32. Nxc3 {[%emt 0:00:53]} bxc3 {[%emt 0:00:06]} 33. Qxc3+ {[%emt 0:00:04]} Kg8 {[%emt 0:02:17]} 34. Qf6 {[%emt 0:02:04]} Qb4 {[%emt 0:01:30]} 35. Bd5 {[%emt 0:01:58]} Kh7 {[%emt 0:00:30]} 36. Rad1 {[%emt 0:03:14]} Rbe8 {[%emt 0:01:27]} 37. c3 {[%emt 0:01:43]} Ng8 {[%emt 0:02:26]} 38. Qxf7+ {[%emt 0:00:52]} Rxf7 {[%emt 0:00:08]} 39. cxb4 {[%emt 0:00:04]} 1-0

[Event "26th Hit Open-A 2022"]
[Site "Nova Gorica"]
[Date "2022.09.17"]
[Round "3.15"]
[White "Holtel, Jasper"]
[Black "Rozman, Monika"]
[Result "1-0"]
[ECO "A04"]
[WhiteElo "2406"]
[BlackElo "2111"]
[Annotator "ChessBase"]
[PlyCount "99"]
[EventDate "2022.09.16"]
[EventType "swiss"]
[EventCountry "SLO"]
[SourceTitle "playchess.com"]
[Source "ChessBase"]
[SourceQuality "1"]
[TimeControl "5400+30"]

1. Nf3 {[%emt 0:00:02]} f5 {[%emt 0:00:03]} 2. g3 {[%emt 0:00:45]} Nf6 {[%emt 0:00:04]} 3. Bg2 {[%emt 0:00:11]} g6 {[%emt 0:00:03]} 4. b4 {[%emt 0:00:39]} Bg7 {[%emt 0:00:22]} 5. Bb2 {[%emt 0:00:10]} O-O {[%emt 0:00:51]} 6. c4 {[%emt 0:00:23]} e6 {[%emt 0:01:06]} 7. O-O {[%emt 0:08:02]} Qe7 {[%emt 0:00:38]} 8. Qb3 {[%emt 0:01:35]} Nc6 {[%emt 0:00:34]} 9. a3 {[%emt 0:10:16]} d6 {[%emt 0:04:22]} 10. d4 {[%emt 0:07:32]} Ne4 {[%emt 0:01:51]} 11. d5 {[%emt 0:05:45]} Nd8 {[%emt 0:02:06]} 12. Nbd2 {[%emt 0:02:22]} Nxd2 {[%emt 0:02:13]} 13. Nxd2 {[%emt 0:01:54]} e5 {[%emt 0:00:08]} 14. Rac1 {[%emt 0:07:08]} g5 {[%emt 0:00:52]} 15. c5 {[%emt 0:02:04]} g4 {[%emt 0:01:23]} 16. cxd6 {[%emt 0:01:38]} cxd6 {[%emt 0:00:11]} 17. e3 {[%emt 0:05:09]} Nf7 {[%emt 0:07:08]} 18. Rc2 {[%emt 0:04:09]} Qg5 {[%emt 0:06:19]} 19. Rc7 {[%emt 0:04:35]} Bf6 {[%emt 0:04:06]} 20. Rfc1 {[%emt 0:00:39]} e4 {[%emt 0:05:12]} 21. Bxf6 {[%emt 0:08:34]} Qxf6 {[%emt 0:00:10]} 22. Bf1 {[%emt 0:05:00]} Ne5 {[%emt 0:03:00]} 23. Be2 {[%emt 0:02:07]} Rb8 {[%emt 0:01:45]} 24. Nc4 {[%emt 0:02:47]} Nf7 {[%emt 0:04:46]} 25. Qc3 {[%emt 0:01:15]} Qh6 {[%emt 0:00:12]} 26. b5 {[%emt 0:03:07]} Rd8 {[%emt 0:00:32]} 27. Qa5 {[%emt 0:03:05]} Bd7 {[%emt 0:03:30]} 28. a4 {[%emt 0:03:40]} Qh3 {[%emt 0:03:51]} 29. Bf1 {[%emt 0:01:59]} Qh5 {[%emt 0:00:42]} 30. Nd2 {[%emt 0:01:11]} a6 {[%emt 0:09:56]} 31. Qb6 {[%emt 0:01:15]} axb5 {[%emt 0:04:31]} 32. a5 {[%emt 0:00:18]} Rbc8 {[%emt 0:08:45]} 33. Rxd7 {[%emt 0:01:53]} Rxc1 {[%emt 0:00:05]} 34. Rxd8+ {[%emt 0:00:16]} Nxd8 {[%emt 0:00:19]} 35. Qxd8+ {[%emt 0:00:08]} Kg7 {[%emt 0:00:16]} 36. Qxd6 {[%emt 0:00:39]} Qf7 {[%emt 0:01:23]} 37. Nb3 {[%emt 0:00:59]} Qc7 {[%emt 0:00:38]} 38. Qb4 {[%emt 0:01:34]} Rd1 {[%emt 0:03:33]} 39. Qxb5 {[%emt 0:01:47]} Kf6 {[%emt 0:00:11]} 40. Nd4 {[%emt 0:00:52]} f4 {[%emt 0:03:28]} 41. gxf4 {[%emt 0:00:20]} Rxd4 {[%emt 0:00:15]} 42. Qb2 {[%emt 0:00:49]} Qxa5 {[%emt 0:00:27]} 43. Qxd4+ {[%emt 0:00:10]} Kf7 {[%emt 0:00:01]} 44. Qxe4 {[%emt 0:00:15]} h5 {[%emt 0:00:03]} 45. d6 {[%emt 0:00:17]} h4 {[%emt 0:00:10]} 46. Qe7+ {[%emt 0:00:11]} Kg8 {[%emt 0:00:05]} 47. Bc4+ {[%emt 0:00:36]} Kh8 {[%emt 0:00:04]} 48. Qf8+ {[%emt 0:00:08]} Kh7 {[%emt 0:00:01]} 49. Bd3+ {[%emt 0:00:10]} Qf5 {[%emt 0:00:01]} 50. Bxf5# {[%emt 0:00:14]} 1-0

[Event "26th Hit Open-A 2022"]
[Site "Nova Gorica"]
[Date "2022.09.17"]
[Round "3.16"]
[White "Acimovic, Vasja"]
[Black "Drazic, Sinisa"]
[Result "0-1"]
[ECO "A40"]
[WhiteElo "2237"]
[BlackElo "2327"]
[Annotator "ChessBase"]
[PlyCount "131"]
[EventDate "2022.09.16"]
[EventType "swiss"]
[EventCountry "SLO"]
[SourceTitle "playchess.com"]
[Source "ChessBase"]
[SourceQuality "1"]
[TimeControl "5400+30"]

1. d4 {[%emt 0:00:02]} e6 {[%emt 0:02:10]} 2. Bf4 {[%emt 0:00:18]} c5 {[%emt 0:04:05]} 3. e3 {[%emt 0:00:11]} Nc6 {[%emt 0:00:03]} 4. c3 {[%emt 0:00:07]} d5 {[%emt 0:00:06]} 5. Nd2 {[%emt 0:00:06]} Bd6 {[%emt 0:00:04]} 6. Bg3 {[%emt 0:00:04]} Nge7 {[%emt 0:00:04]} 7. Bd3 {[%emt 0:01:24]} e5 {[%emt 0:01:34]} 8. dxe5 {[%emt 0:10:25]} Nxe5 {[%emt 0:01:16]} 9. Be2 {[%emt 0:00:10]} Bf5 {[%emt 0:01:55]} 10. Ndf3 {[%emt 0:02:00]} N5c6 {[%emt 0:00:25]} 11. Bd3 {[%emt 0:01:14]} Bg4 {[%emt 0:18:02]} 12. Qa4 {[%emt 0:04:50]} c4 {[%emt 0:01:30]} 13. Be2 {[%emt 0:01:36]} b5 {[%emt 0:00:42]} 14. Qd1 {[%emt 0:00:55]} Bxg3 {[%emt 0:09:51]} 15. hxg3 {[%emt 0:00:08]} b4 {[%emt 0:02:38]} 16. Nd4 {[%emt 0:15:55]} Bxe2 {[%emt 0:00:36]} 17. Ngxe2 {[%emt 0:00:14]} Ne5 {[%emt 0:00:12]} 18. O-O {[%emt 0:00:17]} bxc3 {[%emt 0:02:19]} 19. bxc3 {[%emt 0:01:53]} Qa5 {[%emt 0:02:32]} 20. Qc2 {[%emt 0:07:56]} O-O {[%emt 0:00:04]} 21. Nf4 {[%emt 0:00:18]} g6 {[%emt 0:01:10]} 22. Rfd1 {[%emt 0:02:23]} Rab8 {[%emt 0:03:05]} 23. Rd2 {[%emt 0:02:04]} Rb6 {[%emt 0:03:16]} 24. Rad1 {[%emt 0:01:33]} Ng4 {[%emt 0:14:25]} 25. Nde2 {[%emt 0:07:01]} Nf6 {[%emt 0:00:45]} 26. f3 {[%emt 0:06:50]} h5 {[%emt 0:01:59]} 27. Nd4 {[%emt 0:01:20]} Rfb8 {[%emt 0:00:52]} 28. Qc1 {[%emt 0:04:59]} Kg7 {[%emt 0:01:04]} 29. Qa1 {[%emt 0:02:50]} Qa3 {[%emt 0:01:21]} 30. Nc2 {[%emt 0:00:25]} Qc5 {[%emt 0:00:20]} 31. Nd4 {[%emt 0:00:34]} Kg8 {[%emt 0:03:58]} 32. a4 {[%emt 0:00:39]} a6 {[%emt 0:02:45]} 33. Kh2 {[%emt 0:01:08]} Kh7 {[%emt 0:00:39]} 34. Nh3 {[%emt 0:02:26]} Kg7 {[%emt 0:01:20]} 35. Nf4 {[%emt 0:00:11]} Kg8 {[%emt 0:00:24]} 36. Nh3 {[%emt 0:00:43]} Qc7 {[%emt 0:04:27]} 37. Nf2 {[%emt 0:08:04]} Kg7 {[%emt 0:03:50]} 38. Qa3 {[%emt 0:01:09]} R6b7 {[%emt 0:00:36]} 39. f4 {[%emt 0:00:31]} Neg8 {[%emt 0:01:07]} 40. Re2 {[%emt 0:01:36]} Re8 {[%emt 0:00:53]} 41. Rde1 {[%emt 0:00:39]} Nh6 {[%emt 0:00:58]} 42. Kg1 {[%emt 0:00:11]} Nhg4 {[%emt 0:00:57]} 43. Qc1 {[%emt 0:02:33]} Nxf2 {[%emt 0:02:20]} 44. Rxf2 {[%emt 0:00:07]} Ne4 {[%emt 0:00:48]} 45. Rb2 {[%emt 0:01:03]} Reb8 {[%emt 0:02:00]} 46. Ree2 {[%emt 0:01:18]} Nxg3 {[%emt 0:03:35]} 47. Rec2 {[%emt 0:00:11]} Ne4 {[%emt 0:00:20]} 48. Ne2 {[%emt 0:01:00]} Qc5 {[%emt 0:00:25]} 49. Nd4 {[%emt 0:01:04]} Qc7 {[%emt 0:02:18]} 50. Ne2 {[%emt 0:00:32]} Qd7 {[%emt 0:01:27]} 51. Rxb7 {[%emt 0:00:40]} Qxb7 {[%emt 0:00:27]} 52. Qd1 {[%emt 0:00:35]} Qb1 {[%emt 0:00:20]} 53. Rc1 {[%emt 0:00:10]} Qd3 {[%emt 0:00:04]} 54. Qxd3 {[%emt 0:00:43]} cxd3 {[%emt 0:00:02]} 55. Nd4 {[%emt 0:00:13]} Nxc3 {[%emt 0:01:04]} 56. Rxc3 {[%emt 0:00:58]} d2 {[%emt 0:00:11]} 57. Rd3 {[%emt 0:00:10]} Rb1+ {[%emt 0:00:03]} 58. Kf2 {[%emt 0:00:14]} d1=Q {[%emt 0:00:04]} 59. Rxd1 {[%emt 0:00:07]} Rxd1 {[%emt 0:00:05]} 60. Nb3 {[%emt 0:00:17]} Rb1 {[%emt 0:00:47]} 61. Nc5 {[%emt 0:00:06]} a5 {[%emt 0:00:15]} 62. Kf3 {[%emt 0:01:15]} Rb4 {[%emt 0:00:07]} 63. g3 {[%emt 0:00:29]} Rc4 {[%emt 0:00:52]} 64. Nd7 {[%emt 0:00:06]} d4 {[%emt 0:00:52]} 65. exd4 {[%emt 0:00:24]} Rxd4 {[%emt 0:00:47]} 66. Ke3 {[%emt 0:02:50]} 0-1

[Event "26th Hit Open-A 2022"]
[Site "Nova Gorica"]
[Date "2022.09.17"]
[Round "3.17"]
[White "Gregoric, Andraz"]
[Black "Rakesh Kumar Jena"]
[Result "1-0"]
[ECO "B10"]
[WhiteElo "2182"]
[BlackElo "2321"]
[Annotator "ChessBase"]
[PlyCount "82"]
[EventDate "2022.09.16"]
[EventType "swiss"]
[EventCountry "SLO"]
[SourceTitle "playchess.com"]
[Source "ChessBase"]
[SourceQuality "1"]
[TimeControl "5400+30"]

1. e4 {[%emt 0:00:52]} c6 {[%emt 0:02:09]} 2. Nf3 {[%emt 0:00:27]} d5 {[%emt 0:02:47]} 3. d3 {[%emt 0:00:04]} dxe4 {[%emt 0:01:18]} 4. dxe4 {[%emt 0:00:19]} Qxd1+ {[%emt 0:00:13]} 5. Kxd1 {[%emt 0:00:05]} Bg4 {[%emt 0:00:34]} 6. Be2 {[%emt 0:00:06]} Nd7 {[%emt 0:00:15]} 7. Ne1 {[%emt 0:00:06]} Bxe2+ {[%emt 0:04:20]} 8. Kxe2 {[%emt 0:00:05]} O-O-O {[%emt 0:00:05]} 9. Nd3 {[%emt 0:02:52]} e5 {[%emt 0:01:50]} 10. a4 {[%emt 0:01:16]} c5 {[%emt 0:09:22]} 11. b3 {[%emt 0:02:39]} Ne7 {[%emt 0:00:44]} 12. a5 {[%emt 0:01:47]} Nc6 {[%emt 0:11:03]} 13. c3 {[%emt 0:02:53]} Bd6 {[%emt 0:06:57]} 14. Nd2 {[%emt 0:00:00]} Bc7 {[%emt 0:01:54]} 15. Nc4 {[%emt 0:00:00]} b5 {[%emt 0:01:02]} 16. axb6 {[%emt 0:00:00]} axb6 {[%emt 0:00:02]} 17. Be3 {[%emt 0:04:09]} Kb7 {[%emt 0:09:57]} 18. Na3 {[%emt 0:07:52]} f5 {[%emt 0:09:32]} 19. exf5 {[%emt 0:01:46]} Nf6 {[%emt 0:01:15]} 20. Nb5 {[%emt 0:03:11]} e4 {[%emt 0:07:34]} 21. Nb2 {[%emt 0:10:20]} Nd5 {[%emt 0:03:38]} 22. Ra4 {[%emt 0:06:21]} Rhe8 {[%emt 0:10:35]} 23. Nc4 {[%emt 0:09:14]} Bb8 {[%emt 0:06:37]} 24. g4 {[%emt 0:07:02]} Na7 {[%emt 0:07:22]} 25. Ncd6+ {[%emt 0:05:43]} Kc6 {[%emt 0:01:02]} 26. Nxa7+ {[%emt 0:02:18]} Kxd6 {[%emt 0:00:32]} 27. Rd1 {[%emt 0:05:36]} Kc7 {[%emt 0:00:11]} 28. Nb5+ {[%emt 0:00:31]} Kc6 {[%emt 0:00:01]} 29. c4 {[%emt 0:02:01]} Nb4 {[%emt 0:00:59]} 30. Rxd8 {[%emt 0:00:20]} Rxd8 {[%emt 0:00:01]} 31. h4 {[%emt 0:01:33]} Nc2 {[%emt 0:01:00]} 32. Nc3 {[%emt 0:07:25]} Re8 {[%emt 0:00:57]} 33. Nd5 {[%emt 0:00:28]} Nd4+ {[%emt 0:00:32]} 34. Bxd4 {[%emt 0:01:36]} cxd4 {[%emt 0:00:01]} 35. Ra6 {[%emt 0:00:48]} Bc7 {[%emt 0:00:05]} 36. Nxc7 {[%emt 0:00:52]} Kxc7 {[%emt 0:00:02]} 37. Ra7+ {[%emt 0:00:04]} Kc6 {[%emt 0:00:02]} 38. Rxg7 {[%emt 0:00:05]} Ra8 {[%emt 0:00:07]} 39. f6 {[%emt 0:05:18]} d3+ {[%emt 0:02:15]} 40. Ke3 {[%emt 0:04:26]} Ra2 {[%emt 0:00:01]} 41. Rg5 {[%emt 0:00:21]} Re2+ {[%emt 0:01:03]} 1-0

[Event "26th Hit Open-A 2022"]
[Site "Nova Gorica"]
[Date "2022.09.17"]
[Round "3.18"]
[White "Herega, Nejc"]
[Black "Sharan, Rao"]
[Result "0-1"]
[ECO "D45"]
[WhiteElo "2146"]
[BlackElo "2312"]
[Annotator "ChessBase"]
[PlyCount "66"]
[EventDate "2022.09.16"]
[EventType "swiss"]
[EventCountry "SLO"]
[SourceTitle "playchess.com"]
[Source "ChessBase"]
[SourceQuality "1"]
[TimeControl "5400+30"]

1. d4 {[%emt 0:00:15]} d5 {[%emt 0:00:53]} 2. c4 {[%emt 0:00:39]} e6 {[%emt 0:00:04]} 3. Nc3 {[%emt 0:00:46]} Nf6 {[%emt 0:00:05]} 4. Nf3 {[%emt 0:00:11]} c6 {[%emt 0:00:13]} 5. e3 {[%emt 0:00:09]} Nbd7 {[%emt 0:00:07]} 6. Qc2 {[%emt 0:00:17]} Bd6 {[%emt 0:01:48]} 7. g4 {[%emt 0:00:22]} h6 {[%emt 0:01:10]} 8. Rg1 {[%emt 0:02:50]} e5 {[%emt 0:02:12]} 9. h3 {[%emt 0:09:59]} e4 {[%emt 0:01:56]} 10. Nh4 {[%emt 0:02:34]} g6 {[%emt 0:03:59]} 11. Bd2 {[%emt 0:02:18]} a6 {[%emt 0:04:31]} 12. O-O-O {[%emt 0:15:01]} b5 {[%emt 0:07:59]} 13. f3 {[%emt 0:07:12]} exf3 {[%emt 0:14:34]} 14. Nxf3 {[%emt 0:06:52]} bxc4 {[%emt 0:12:20]} 15. e4 {[%emt 0:06:04]} Bb4 {[%emt 0:01:09]} 16. exd5 {[%emt 0:02:36]} Bxc3 {[%emt 0:01:27]} 17. Bxc3 {[%emt 0:04:39]} cxd5 {[%emt 0:00:18]} 18. Bb4 {[%emt 0:03:18]} Nf8 {[%emt 0:02:00]} 19. Re1+ {[%emt 0:02:00]} Ne6 {[%emt 0:04:05]} 20. Ne5 {[%emt 0:06:22]} Qb6 {[%emt 0:17:05]} 21. Bc5 {[%emt 0:08:34]} Qa5 {[%emt 0:00:05]} 22. Bxc4 {[%emt 0:01:22]} dxc4 {[%emt 0:02:49]} 23. Qg2 {[%emt 0:02:57]} Qc7 {[%emt 0:11:05]} 24. Qxa8 {[%emt 0:02:06]} Nxc5 {[%emt 0:00:04]} 25. Nxg6+ {[%emt 0:04:11]} Kd8 {[%emt 0:00:02]} 26. Nxh8 {[%emt 0:02:27]} Qf4+ {[%emt 0:00:01]} 27. Kb1 {[%emt 0:00:49]} Qxd4 {[%emt 0:00:02]} 28. Nxf7+ {[%emt 0:01:20]} Kc7 {[%emt 0:00:01]} 29. Ne5 {[%emt 0:00:38]} Bb7 {[%emt 0:01:09]} 30. Qf8 {[%emt 0:01:12]} Be4+ {[%emt 0:02:29]} 31. Ka1 {[%emt 0:00:14]} Qxe5 {[%emt 0:01:21]} 32. Rc1 {[%emt 0:01:09]} Nfd7 {[%emt 0:00:15]} 33. Qxh6 {[%emt 0:00:31]} Nb3+ {[%emt 0:00:09]} 0-1

[Event "26th Hit Open-A 2022"]
[Site "Nova Gorica"]
[Date "2022.09.17"]
[Round "3.19"]
[White "Hercog, Nusa"]
[Black "Manish Anto Cristiano F"]
[Result "1/2-1/2"]
[ECO "D30"]
[WhiteElo "2019"]
[BlackElo "2249"]
[Annotator "TA"]
[PlyCount "72"]
[EventDate "2022.09.16"]
[EventType "swiss"]
[EventCountry "SLO"]
[SourceTitle "playchess.com"]
[Source "ChessBase"]
[SourceQuality "1"]
[TimeControl "5400+30"]

{[%evp 13,72,24,40,36,52,39,85,78,247,242,253,244,235,238,241,240,250,252,247,245,312,271,286,229,257,286,250,291,268,257,289,277,279,307,314,304,241,197,274,272,427,408,403,440,533,229,235,206,191,203,145,16,295,0,345,341,1136,337,341,356,333]} 1. d4 {[%emt 0:00:03]} d5 {[%emt 0:00:11]} 2. c4 {[%emt 0:00:10]} c6 {[%emt 0:00:11]} 3. Nf3 {[%emt 0:00:16]} Nf6 {[%emt 0:00:17]} 4. e3 {[%emt 0:00:45]} e6 {[%emt 0:00:09]} 5. Nbd2 {[%emt 0:00:14][%cal Bb1d2,Bd2c4,Bc4e5][%mdl 32]} Nbd7 {[%emt 0:00:41]} 6. Bd3 {[%emt 0:00:12]} dxc4 {[%emt 0:00:13]} 7. Nxc4 {[%emt 0:00:19]} b5 {[%emt 0:00:08]} 8. Nce5 {[%emt 0:00:11] D30: Queen's Gambit Declined: Systems without Nc3.} Bb7 {[%emt 0:00:09]} 9. O-O {[%emt 0:00:24]} Be7 {[%emt 0:00:22]} (9... a6 $14 {should be considered.}) 10. a4 {[%emt 0:02:14] White has more active pieces. The black rooks are badly placed. White is better.} b4 $2 {[%emt 0:00:15] [#]} (10... O-O $16) 11. Nxf7 $146 {[%emt 0:16:48][%mdl 512]} ({Predecessor:} 11. a5 O-O 12. a6 Nxe5 13. dxe5 Bc8 14. exf6 Bxf6 15. Qc2 h6 16. Bd2 Qb6 17. Rac1 Bxa6 18. Bxa6 Qxa6 19. Bxb4 {1-0 (26) Turner,M (2509)-Thomas,I Chess.com INT 2021}) 11... Kxf7 {[%emt 0:01:22]} 12. Ng5+ {[%emt 0:00:05]} Kg8 {[%emt 0:21:34]} 13. Nxe6 {[%emt 0:01:18]} Qe8 {[%emt 0:00:58]} 14. Nc7 {[%emt 0:10:08][%csl LRa8,LRe8][%mdl 64] Deflection} Qf7 {[%emt 0:00:35] And now ...Rc8 would win.} 15. Nxa8 {[%emt 0:05:40]} Bxa8 {[%emt 0:00:21]} 16. e4 {[%emt 0:02:17]} h5 {[%emt 0:08:31]} 17. Qe2 {[%emt 0:04:34]} Qe8 {[%emt 0:07:08]} 18. Bc4+ {[%emt 0:03:18]} Kf8 {[%emt 0:03:41]} 19. e5 {[%emt 0:04:49]} Nd5 {[%emt 0:01:34]} 20. Bxd5 {[%emt 0:01:48]} cxd5 {[%emt 0:00:09]} 21. f4 {[%emt 0:01:27][%cal Bf2f4,Bf4f5,Bf5f6][%mdl 32]} Bb7 {[%emt 0:05:29]} 22. Bd2 {[%emt 0:05:32]} Rh6 {[%emt 0:05:37]} 23. f5 {[%emt 0:03:51]} Rc6 {[%emt 0:06:28]} 24. Rfc1 {[%emt 0:02:45]} Rc4 {[%emt 0:06:35]} 25. Be3 {[%emt 0:09:47] aiming for b3.} Ba6 {[%emt 0:04:39]} (25... Bd8 $142 26. Rxc4 Ba6) 26. Qf3 {[%emt 0:01:38]} Rxc1+ {[%emt 0:01:41]} (26... Bd8 {was necessary.} 27. b3 Rc3 28. Rxc3 (28. Qxd5 Nb6 $18) 28... bxc3 29. Qxd5 Qe7) 27. Rxc1 {[%emt 0:00:04]} (27. Bxc1 Bb7 28. f6 Bd8 $18) 27... Bc4 {[%emt 0:00:09]} 28. f6 {[%emt 0:02:34]} Bd8 {[%emt 0:05:39]} 29. Bg5 {[%emt 0:06:23]} (29. b3 $142 Bxb3 30. Rc8 gxf6 31. Bh6+ Kf7 32. Qxb3) 29... Bb6 {[%emt 0:03:25]} 30. fxg7+ {[%emt 0:01:23]} Kxg7 {[%emt 0:00:11] Strongly threatening ...Qxe5.} 31. Bf6+ {[%emt 0:02:53]} Nxf6 {[%emt 0:01:32]} 32. exf6+ {[%emt 0:02:40]} (32. Qxf6+ $16 Kg8 33. e6) 32... Kg6 $2 {[%emt 0:01:00][%mdl 8192]} (32... Kf8 $1 $11 {and Black is okay.} 33. Qf4 Kf7) 33. Qf4 $2 {[%emt 0:07:27]} (33. Qg3+ $18 Kxf6 34. Re1 Bxd4+ 35. Kh1) 33... Qe6 $2 {[%emt 0:02:30][%mdl 8192] [#]} ({Much less strong is} 33... Kf7 34. b3 Bd3 35. Qh6 (35. Qg5 Bxd4+ 36. Kh1 Ke6 $11) 35... Bxd4+ 36. Kh1 $14) (33... Bc7 $11 34. Qf2 Bd6) 34. b3 $1 {[%emt 0:00:32]} Ba6 $2 {[%emt 0:01:11]} (34... Qg4 35. Qxg4+ hxg4) 35. a5 $2 {[%emt 0:00:59]} (35. f7 Bc5 36. dxc5 Qxf7 37. Qd6+ Qf6 38. Qxd5) 35... Bd8 {[%emt 0:00:19]} 36. f7 {[%emt 0:00:20] Dancing on a razor blade.} Be7 {[%emt 0:00:56][%mdl 32768] Weighted Error Value: White=0.51/Black=0.57. An unexpected result.} 1/2-1/2